[Event "Dam-SM i Blixtschack"]
[Site "Goteborgs Schackcentrum, Vegatan 20, Gothenburg, Sweden"]
[Date "2024.12.07"]
[Round "3.6"]
[White "Kristiansen, Celina"]
[Black "Mironova, Olga K"]
[Result "1-0"]
[TimeControl "3 minutes + 2 seconds per move from move one"]
[WhiteFideId "1778510"]
[BlackFideId "1779656"]
[WhiteElo "1462"]
[BlackElo "1404"]

1. e4 {[%clk 00:03:03]} e6 {[%clk 00:03:03]} {[%emt 00:00:02]} 2. Nf3 {[%clk
00:03:03]} {[%emt 00:00:02]} d5 {[%clk 00:03:03]} {[%emt 00:00:02]} 3. exd5
{[%clk 00:02:56]} {[%emt 00:00:08]} exd5 {[%clk 00:03:02]} {[%emt 00:00:03]} 4.
d4 {[%clk 00:02:54]} {[%emt 00:00:04]} Nc6 {[%clk 00:03:01]} {[%emt 00:00:03]}
5. c3 {[%clk 00:02:44]} {[%emt 00:00:13]} Nf6 {[%clk 00:02:58]} {[%emt
00:00:05]} 6. h3 {[%clk 00:02:43]} {[%emt 00:00:03]} Bd6 {[%clk 00:02:57]}
{[%emt 00:00:03]} 7. Bd3 {[%clk 00:02:34]} {[%emt 00:00:11]} O-O {[%clk
00:02:56]} {[%emt 00:00:03]} 8. Qc2 {[%clk 00:02:34]} {[%emt 00:00:01]} Re8+
{[%clk 00:02:57]} {[%emt 00:00:02]} 9. Be3 {[%clk 00:02:21]} {[%emt 00:00:15]}
Bf4 {[%clk 00:02:46]} {[%emt 00:00:13]} 10. O-O {[%clk 00:02:18]} {[%emt
00:00:05]} Qd6 {[%clk 00:02:37]} {[%emt 00:00:11]} 11. Nbd2 {[%clk 00:02:11]}
{[%emt 00:00:08]} Bh2+ {[%clk 00:02:33]} {[%emt 00:00:06]} 12. Nxh2 {[%clk
00:02:11]} {[%emt 00:00:03]} Ne4 {[%clk 00:01:46]} {[%emt 00:00:49]} 13. Bxe4
{[%clk 00:02:10]} {[%emt 00:00:03]} dxe4 {[%clk 00:01:46]} {[%emt 00:00:02]} 14.
Nxe4 {[%clk 00:02:03]} {[%emt 00:00:08]} Qg6 {[%clk 00:01:37]} {[%emt
00:00:11]} 15. Ng3 {[%clk 00:01:51]} {[%emt 00:00:14]} Qxc2 {[%clk 00:01:34]}
{[%emt 00:00:05]} 16. Rab1 {[%clk 00:01:31]} {[%emt 00:00:22]} Bd7 {[%clk
00:01:16]} {[%emt 00:00:21]} 17. a3 {[%clk 00:01:27]} {[%emt 00:00:06]} Re6
{[%clk 00:01:15]} {[%emt 00:00:03]} 18. d5 {[%clk 00:01:20]} {[%emt 00:00:08]}
Rd6 {[%clk 00:01:05]} {[%emt 00:00:12]} 19. dxc6 {[%clk 00:01:21]} {[%emt
00:00:02]} Rd2 {[%clk 00:01:04]} {[%emt 00:00:02]} 20. Bxd2 {[%clk 00:01:21]}
{[%emt 00:00:02]} Qxd2 {[%clk 00:01:04]} {[%emt 00:00:03]} 21. Rbd1 {[%clk
00:01:21]} {[%emt 00:00:02]} Qxb2 {[%clk 00:01:03]} {[%emt 00:00:03]} 22. Rxd7
{[%emt 00:00:03]} Qxc3 {[%clk 00:00:46]} {[%emt 00:00:17]} 23. cxb7 {[%clk
00:01:22]} {[%emt 00:00:02]} Rb8 {[%clk 00:00:46]} {[%emt 00:00:01]} 24. Rb1
{[%clk 00:01:21]} {[%emt 00:00:03]} Rxb7 {[%clk 00:00:43]} {[%emt 00:00:05]} 25.
Rxb7 {[%clk 00:01:22]} {[%emt 00:00:01]} Qc1+ {[%clk 00:00:43]} {[%emt
00:00:02]} 26. Ngf1 {[%clk 00:01:23]} h6 {[%clk 00:00:42]} {[%emt 00:00:04]} 27.
Rbxc7 {[%clk 00:01:20]} {[%emt 00:00:04]} Qxa3 {[%clk 00:00:32]} {[%emt
00:00:13]} 28. Rd8+ {[%clk 00:01:21]} {[%emt 00:00:02]} Kh7 {[%clk 00:00:32]}
{[%emt 00:00:02]} 29. Rxf7 {[%clk 00:01:20]} {[%emt 00:00:02]} Kg6 {[%clk
00:00:31]} {[%emt 00:00:03]} 30. Rf3 {[%clk 00:01:16]} {[%emt 00:00:06]} Qe7
{[%clk 00:00:26]} {[%emt 00:00:07]} 31. Rdd3 {[%clk 00:01:14]} {[%emt
00:00:04]} h5 {[%clk 00:00:19]} {[%emt 00:00:09]} 32. Rg3+ {[%clk 00:01:13]}
{[%emt 00:00:04]} Kh6 {[%clk 00:00:18]} {[%emt 00:00:03]} 33. Rde3 {[%clk
00:01:10]} {[%emt 00:00:05]} Qf6 {[%clk 00:00:15]} {[%emt 00:00:04]} 34. Rgf3
{[%clk 00:01:05]} {[%emt 00:00:07]} Qg5 {[%clk 00:00:12]} {[%emt 00:00:06]} 35.
h4 {[%clk 00:01:05]} {[%emt 00:00:03]} Qg6 {[%clk 00:00:10]} {[%emt 00:00:04]}
36. Rg3 {[%clk 00:01:04]} {[%emt 00:00:03]} Qf6 {[%clk 00:00:08]} {[%emt
00:00:03]} 37. Ng4+ {[%clk 00:01:01]} {[%emt 00:00:06]} hxg4 {[%clk 00:00:07]}
{[%emt 00:00:02]} 38. Rxg4 {[%clk 00:01:02]} {[%emt 00:00:02]} 1-0

[Event "Dam-SM i Blixtschack"]
[Site "Goteborgs Schackcentrum, Vegatan 20, Gothenburg, Sweden"]
[Date "2024.12.07"]
[Round "1.2"]
[White "Opdendries, Zoe"]
[Black "Isurina Mariano, Cristine Rose"]
[Result "0-1"]
[TimeControl "3 minutes + 2 seconds per move from move one"]
[BlackTitle "WIM"]
[WhiteFideId "1739506"]
[BlackFideId "5201071"]
[WhiteElo "1466"]
[BlackElo "1920"]

1. d4 {[%clk 00:03:03]} e6 {[%clk 00:03:04]} 2. c4 {[%clk 00:03:02]} {[%emt
00:00:02]} b6 {[%clk 00:03:06]} 3. Nf3 {[%clk 00:03:01]} {[%emt 00:00:03]} Bb7
{[%clk 00:03:07]} 4. Nc3 {[%clk 00:02:56]} {[%emt 00:00:08]} Bb4 {[%clk
00:03:09]} 5. Bd2 {[%clk 00:02:56]} {[%emt 00:00:02]} f5 {[%clk 00:03:10]} 6.
e3 {[%clk 00:02:48]} {[%emt 00:00:10]} Nf6 {[%clk 00:03:11]} 7. g3 {[%clk
00:02:43]} {[%emt 00:00:07]} O-O {[%clk 00:03:09]} {[%emt 00:00:04]} 8. Bg2
{[%clk 00:02:43]} {[%emt 00:00:02]} d6 {[%clk 00:03:09]} {[%emt 00:00:02]} 9.
O-O {[%clk 00:02:37]} {[%emt 00:00:07]} Bxc3 {[%clk 00:03:08]} {[%emt
00:00:04]} 10. Bxc3 {[%clk 00:02:37]} {[%emt 00:00:02]} Ne4 {[%clk 00:03:09]}
{[%emt 00:00:01]} 11. Rc1 {[%clk 00:02:23]} {[%emt 00:00:16]} Nd7 {[%clk
00:03:10]} {[%emt 00:00:01]} 12. d5 {[%clk 00:02:11]} {[%emt 00:00:13]} e5
{[%clk 00:03:08]} {[%emt 00:00:04]} 13. Nh4 {[%clk 00:01:57]} {[%emt 00:00:16]}
Nxc3 {[%clk 00:03:03]} {[%emt 00:00:07]} 14. Rxc3 {[%clk 00:01:47]} {[%emt
00:00:11]} g5 {[%clk 00:03:05]} {[%emt 00:00:01]} 15. Nf3 {[%clk 00:01:42]}
{[%emt 00:00:07]} Qf6 {[%clk 00:02:50]} {[%emt 00:00:16]} 16. h4 {[%clk
00:01:27]} {[%emt 00:00:17]} gxh4 {[%clk 00:02:10]} {[%emt 00:00:43]} 17. Nxh4
{[%clk 00:01:25]} {[%emt 00:00:04]} e4 {[%clk 00:02:08]} {[%emt 00:00:04]} 18.
Bh3 {[%clk 00:01:03]} {[%emt 00:00:24]} Qg5 {[%clk 00:01:58]} {[%emt 00:00:12]}
19. Kh2 {[%clk 00:00:28]} {[%emt 00:00:38]} Ne5 {[%clk 00:02:00]} 20. Qd4
{[%clk 00:00:24]} {[%emt 00:00:06]} Nf3+ {[%clk 00:01:54]} {[%emt 00:00:08]} 21.
Nxf3 {[%clk 00:00:23]} {[%emt 00:00:02]} exf3 {[%clk 00:01:55]} {[%emt
00:00:02]} 22. e4 {[%clk 00:00:14]} {[%emt 00:00:11]} Qh5 {[%clk 00:01:02]}
{[%emt 00:00:54]} 23. exf5 {[%clk 00:00:12]} {[%emt 00:00:04]} Rae8 {[%clk
00:01:03]} {[%emt 00:00:01]} 24. Re3 {[%clk 00:00:12]} {[%emt 00:00:02]} Rxe3
{[%clk 00:00:56]} {[%emt 00:00:09]} 25. fxe3 {[%clk 00:00:12]} {[%emt
00:00:02]} Bc8 {[%clk 00:00:56]} {[%emt 00:00:02]} 26. Qe4 {[%clk 00:00:10]}
{[%emt 00:00:03]} Bxf5 {[%clk 00:00:51]} {[%emt 00:00:06]} 27. Qd4 {[%clk
00:00:06]} {[%emt 00:00:07]} Qxh3+ {[%clk 00:00:51]} {[%emt 00:00:02]} 28. Kg1
{[%clk 00:00:06]} {[%emt 00:00:02]} Qg2# {[%clk 00:00:52]} 0-1

[Event "Dam-SM i Blixtschack"]
[Site "Goteborgs Schackcentrum, Vegatan 20, Gothenburg, Sweden"]
[Date "2024.12.07"]
[Round "4.1"]
[White "Isurina Mariano, Cristine Rose"]
[Black "Hansson, Susanne"]
[Result "1-0"]
[TimeControl "3 minutes + 2 seconds per move from move one"]
[WhiteTitle "WIM"]
[WhiteFideId "5201071"]
[BlackFideId "1703820"]
[WhiteElo "1920"]
[BlackElo "1878"]

1. e4 {[%clk 00:03:04]} e5 {[%clk 00:03:03]} {[%emt 00:00:01]} 2. Nc3 {[%clk
00:03:04]} {[%emt 00:00:02]} Nf6 {[%clk 00:03:04]} {[%emt 00:00:01]} 3. d3
{[%clk 00:03:05]} Nc6 {[%clk 00:03:03]} {[%emt 00:00:02]} 4. g3 {[%clk
00:03:06]} d5 {[%clk 00:02:57]} {[%emt 00:00:09]} 5. exd5 {[%clk 00:03:06]}
{[%emt 00:00:02]} Nxd5 {[%clk 00:02:57]} {[%emt 00:00:02]} 6. Nge2 {[%clk
00:03:07]} Bg4 {[%clk 00:02:47]} {[%emt 00:00:12]} 7. Bg2 {[%clk 00:03:07]}
{[%emt 00:00:02]} Nce7 {[%clk 00:02:33]} {[%emt 00:00:16]} 8. h3 {[%clk
00:03:02]} {[%emt 00:00:07]} Be6 {[%clk 00:02:33]} {[%emt 00:00:02]} 9. O-O
{[%clk 00:03:02]} {[%emt 00:00:02]} c6 {[%clk 00:02:28]} {[%emt 00:00:07]} 10.
f4 {[%clk 00:03:01]} {[%emt 00:00:03]} Qb6+ {[%clk 00:02:26]} {[%emt 00:00:04]}
11. Kh2 {[%clk 00:03:02]} Ne3 {[%clk 00:02:13]} {[%emt 00:00:15]} 12. Bxe3
{[%clk 00:02:51]} {[%emt 00:00:13]} Qxe3 {[%clk 00:02:14]} {[%emt 00:00:01]} 13.
Ne4 {[%clk 00:02:41]} {[%emt 00:00:12]} O-O-O {[%clk 00:02:07]} {[%emt
00:00:09]} 14. fxe5 {[%clk 00:02:41]} {[%emt 00:00:02]} Nf5 {[%clk 00:02:02]}
{[%emt 00:00:06]} 15. Rf3 {[%clk 00:02:36]} {[%emt 00:00:07]} Qb6 {[%clk
00:02:01]} {[%emt 00:00:04]} 16. b3 {[%clk 00:02:27]} {[%emt 00:00:11]} h6
{[%clk 00:01:40]} {[%emt 00:00:23]} 17. c3 {[%clk 00:02:16]} {[%emt 00:00:13]}
Qc7 {[%clk 00:01:25]} {[%emt 00:00:17]} 18. d4 {[%clk 00:02:15]} {[%emt
00:00:04]} g5 {[%clk 00:01:19]} {[%emt 00:00:08]} 19. Qc2 {[%clk 00:02:06]}
{[%emt 00:00:10]} Rg8 {[%clk 00:01:11]} {[%emt 00:00:10]} 20. g4 {[%clk
00:02:06]} {[%emt 00:00:02]} Nh4 {[%clk 00:01:10]} {[%emt 00:00:03]} 21. Rd3
{[%clk 00:02:01]} {[%emt 00:00:08]} f5 {[%clk 00:01:09]} {[%emt 00:00:03]} 22.
Nf6 {[%clk 00:02:00]} {[%emt 00:00:03]} Rg7 {[%clk 00:01:07]} {[%emt 00:00:04]}
23. Ng3 {[%clk 00:01:51]} {[%emt 00:00:11]} fxg4 {[%clk 00:01:08]} {[%emt
00:00:02]} 24. hxg4 {[%clk 00:01:48]} {[%emt 00:00:05]} Be7 {[%clk 00:01:05]}
{[%emt 00:00:05]} 25. Ngh5 {[%clk 00:01:46]} {[%emt 00:00:04]} Bxf6 {[%clk
00:01:02]} {[%emt 00:00:34]} 26. Nxf6 {[%clk 00:01:29]} {[%emt 00:00:45]} c5
{[%clk 00:01:33]} {[%emt 00:00:31]} 27. Rc1 {[%clk 00:01:17]} {[%emt 00:00:15]}
Kb8 {[%clk 00:01:30]} {[%emt 00:00:06]} 28. Be4 {[%clk 00:01:16]} {[%emt
00:00:03]} Rf7 {[%clk 00:01:16]} {[%emt 00:00:16]} 29. Qf2 {[%clk 00:01:16]}
{[%emt 00:00:02]} h5 {[%clk 00:01:12]} {[%emt 00:00:05]} 30. Qg3 {[%clk
00:01:05]} {[%emt 00:00:13]} cxd4 {[%clk 00:01:12]} {[%emt 00:00:03]} 31. gxh5
{[%clk 00:00:56]} {[%emt 00:00:11]} Bf5 {[%clk 00:00:58]} {[%emt 00:00:16]} 32.
Rcd1 {[%clk 00:00:48]} {[%emt 00:00:11]} Bxe4 {[%clk 00:00:55]} {[%emt
00:00:04]} 33. Nxe4 {[%clk 00:00:49]} {[%emt 00:00:01]} Nf3+ {[%clk 00:00:54]}
{[%emt 00:00:03]} 34. Rxf3 {[%clk 00:00:50]} {[%emt 00:00:02]} Rxf3 {[%clk
00:00:54]} {[%emt 00:00:03]} 35. Qxf3 {[%emt 00:00:01]} Qxe5+ {[%clk 00:00:53]}
36. Ng3 {[%clk 00:00:49]} {[%emt 00:00:04]} Kc7 {[%clk 00:00:45]} {[%emt
00:00:11]} 37. cxd4 {[%clk 00:00:50]} {[%emt 00:00:01]} Rxd4 {[%clk 00:00:45]}
{[%emt 00:00:02]} 38. Qc3+ {[%clk 00:00:51]} {[%emt 00:00:01]} 1-0

[Event "Dam-SM i Blixtschack"]
[Site "Goteborgs Schackcentrum, Vegatan 20, Gothenburg, Sweden"]
[Date "2024.12.07"]
[Round "7.5"]
[White "Kristiansen, Celina"]
[Black "Opdendries, Zoe"]
[Result "0-1"]
[TimeControl "3 minutes + 2 seconds per move from move one"]
[WhiteFideId "1778510"]
[BlackFideId "1739506"]
[WhiteElo "1462"]
[BlackElo "1466"]

1. e4 {[%clk 00:03:03]} d6 {[%clk 00:03:01]} {[%emt 00:00:03]} 2. Nc3 {[%clk
00:03:04]} {[%emt 00:00:02]} Nf6 {[%clk 00:03:01]} {[%emt 00:00:02]} 3. d4
{[%clk 00:02:37]} {[%emt 00:00:28]} g6 {[%clk 00:02:48]} {[%emt 00:00:16]} 4.
Be3 {[%clk 00:02:17]} {[%emt 00:00:22]} Nbd7 {[%clk 00:02:39]} {[%emt
00:00:10]} 5. Qd2 {[%clk 00:02:17]} {[%emt 00:00:03]} c5 {[%clk 00:02:34]}
{[%emt 00:00:07]} 6. dxc5 {[%clk 00:01:43]} {[%emt 00:00:36]} Nxc5 {[%clk
00:02:29]} {[%emt 00:00:07]} 7. Bh6 {[%clk 00:01:20]} {[%emt 00:00:25]} Ncxe4
{[%clk 00:02:19]} {[%emt 00:00:12]} 8. Nxe4 {[%clk 00:01:11]} {[%emt 00:00:10]}
Nxe4 {[%emt 00:00:06]} 9. Qe3 {[%clk 00:00:41]} {[%emt 00:00:31]} Qa5+ {[%clk
00:02:00]} {[%emt 00:00:19]} 10. c3 {[%clk 00:00:29]} {[%emt 00:00:14]} Bf5
{[%clk 00:01:34]} {[%emt 00:00:28]} 11. Bxf8 {[%clk 00:00:25]} {[%emt
00:00:06]} Rxf8 {[%clk 00:01:34]} {[%emt 00:00:01]} 12. Bd3 {[%clk 00:00:20]}
{[%emt 00:00:08]} d5 {[%clk 00:01:17]} {[%emt 00:00:19]} 13. Ne2 {[%clk
00:00:07]} {[%emt 00:00:15]} O-O-O {[%clk 00:01:05]} {[%emt 00:00:13]} 14. Bxe4
{[%clk 00:00:07]} {[%emt 00:00:02]} dxe4 {[%clk 00:01:03]} {[%emt 00:00:04]} 15.
O-O {[%clk 00:00:06]} {[%emt 00:00:03]} Rd3 {[%clk 00:00:54]} {[%emt 00:00:11]}
16. Qf4 {[%clk 00:00:06]} {[%emt 00:00:03]} e5 {[%clk 00:00:48]} {[%emt
00:00:08]} 17. Qh6 {[%clk 00:00:06]} {[%emt 00:00:01]} Rfd8 {[%clk 00:00:42]}
{[%emt 00:00:08]} 18. Qxh7 {[%clk 00:00:05]} {[%emt 00:00:03]} Rd2 {[%clk
00:00:33]} {[%emt 00:00:11]} 19. Rfe1 {[%clk 00:00:06]} {[%emt 00:00:02]} Bg4
{[%clk 00:00:26]} {[%emt 00:00:08]} 20. Qxf7 {[%clk 00:00:04]} {[%emt
00:00:05]} Bxe2 {[%clk 00:00:23]} {[%emt 00:00:05]} 21. h3 {[%clk 00:00:04]}
{[%emt 00:00:02]} Bb5 {[%clk 00:00:15]} {[%emt 00:00:08]} 22. Qe6+ {[%clk
00:00:05]} {[%emt 00:00:02]} Kb8 {[%clk 00:00:14]} {[%emt 00:00:04]} 23. Qxe5+
{[%clk 00:00:04]} {[%emt 00:00:22]} R8d6 {[%clk 00:00:11]} {[%emt 00:00:36]} 24.
Qxe4 {[%clk 00:00:51]} {[%emt 00:00:15]} Qc7 {[%clk 00:00:09]} {[%emt
00:00:04]} 25. Qe3 {[%clk 00:00:25]} {[%emt 00:00:27]} Rxb2 {[%clk 00:00:07]}
{[%emt 00:00:04]} 26. Qe4 {[%clk 00:00:11]} {[%emt 00:00:16]} Rf6 {[%clk
00:00:06]} {[%emt 00:00:02]} 27. Re2 {[%clk 00:00:10]} {[%emt 00:00:04]} Rxe2
{[%clk 00:00:05]} {[%emt 00:00:03]} 28. Qh4 {[%clk 00:00:04]} {[%emt 00:00:08]}
Rfxf2 {[%clk 00:00:03]} {[%emt 00:00:04]} 29. Qh8+ {[%clk 00:00:04]} {[%emt
00:00:02]} Qc8 {[%clk 00:00:03]} {[%emt 00:00:03]} 0-1

[Event "Dam-SM i Blixtschack"]
[Site "Goteborgs Schackcentrum, Vegatan 20, Gothenburg, Sweden"]
[Date "2024.12.07"]
[Round "1.3"]
[White "Olsson, Linn"]
[Black "Kristiansen, Celina"]
[Result "1-0"]
[TimeControl "3 minutes + 2 seconds per move from move one"]
[WhiteFideId "1722514"]
[BlackFideId "1778510"]
[WhiteElo "1890"]
[BlackElo "1462"]

1. d4 {[%clk 00:03:04]} c6 {[%clk 00:03:03]} 2. c4 {[%clk 00:03:05]} d5 {[%clk
00:03:04]} {[%emt 00:00:02]} 3. cxd5 {[%clk 00:03:05]} {[%emt 00:00:02]} cxd5
{[%clk 00:03:02]} {[%emt 00:00:03]} 4. Nc3 {[%clk 00:03:06]} e6 {[%clk
00:02:53]} {[%emt 00:00:12]} 5. a3 {[%clk 00:03:08]} Bd6 {[%clk 00:02:46]}
{[%emt 00:00:09]} 6. Nf3 {[%clk 00:03:09]} {[%emt 00:00:01]} h6 {[%clk
00:02:43]} {[%emt 00:00:05]} 7. Bd2 {[%clk 00:03:08]} {[%emt 00:00:03]} Nf6
{[%clk 00:02:40]} {[%emt 00:00:04]} 8. e3 {[%clk 00:03:10]} O-O {[%clk
00:02:38]} {[%emt 00:00:04]} 9. Bd3 {[%clk 00:03:11]} {[%emt 00:00:02]} a6
{[%clk 00:02:23]} {[%emt 00:00:17]} 10. O-O {[%clk 00:03:11]} {[%emt 00:00:02]}
Nc6 {[%clk 00:02:24]} 11. Rc1 {[%clk 00:03:12]} {[%emt 00:00:01]} Bd7 {[%clk
00:01:35]} {[%emt 00:00:50]} 12. Re1 {[%clk 00:03:14]} Qc7 {[%clk 00:01:34]}
{[%emt 00:00:03]} 13. g3 {[%clk 00:03:02]} {[%emt 00:00:13]} Rfe8 {[%clk
00:01:31]} {[%emt 00:00:04]} 14. e4 {[%clk 00:03:03]} g6 {[%clk 00:01:11]}
{[%emt 00:00:23]} 15. e5 {[%clk 00:03:04]} Bxe5 {[%clk 00:00:45]} {[%emt
00:00:28]} 16. dxe5 {[%clk 00:03:05]} {[%emt 00:00:02]} Ne4 {[%clk 00:00:42]}
{[%emt 00:00:05]} 17. Nxe4 {[%clk 00:03:03]} {[%emt 00:00:03]} dxe4 {[%clk
00:00:42]} {[%emt 00:00:01]} 18. Bxe4 {[%clk 00:03:05]} Nxe5 {[%clk 00:00:37]}
{[%emt 00:00:07]} 19. Rxc7 {[%clk 00:03:04]} {[%emt 00:00:02]} Nxf3+ {[%clk
00:00:32]} {[%emt 00:00:07]} 20. Qxf3 {[%clk 00:03:05]} {[%emt 00:00:02]} Bc6
{[%clk 00:00:17]} {[%emt 00:00:17]} 21. Qxf7+ {[%clk 00:03:04]} {[%emt
00:00:02]} 1-0

[Event "Dam-SM i Blixtschack"]
[Site "Goteborgs Schackcentrum, Vegatan 20, Gothenburg, Sweden"]
[Date "2024.12.07"]
[Round "7.6"]
[White "Mironova, Olga K"]
[Black "Nilsson, Elin"]
[Result "0-1"]
[TimeControl "3 minutes + 2 seconds per move from move one"]
[WhiteFideId "1779656"]
[BlackFideId "1790749"]
[WhiteElo "1404"]
[BlackElo "1509"]

1. e4 {[%clk 00:03:02]} {[%emt 00:00:02]} e6 {[%clk 00:03:02]} {[%emt
00:00:03]} 2. Nf3 {[%clk 00:03:01]} {[%emt 00:00:03]} d5 {[%clk 00:03:01]}
{[%emt 00:00:03]} 3. Nc3 {[%clk 00:02:59]} {[%emt 00:00:04]} c5 {[%clk
00:02:57]} {[%emt 00:00:06]} 4. d4 {[%clk 00:02:50]} {[%emt 00:00:10]} Nc6
{[%clk 00:02:50]} {[%emt 00:00:10]} 5. dxc5 {[%clk 00:02:37]} {[%emt 00:00:15]}
Bxc5 {[%clk 00:02:49]} {[%emt 00:00:03]} 6. exd5 {[%clk 00:02:30]} {[%emt
00:00:09]} exd5 {[%clk 00:02:34]} {[%emt 00:00:17]} 7. Nxd5 {[%clk 00:02:29]}
{[%emt 00:00:04]} Be6 {[%clk 00:02:27]} {[%emt 00:00:09]} 8. Bc4 {[%clk
00:02:14]} {[%emt 00:00:17]} Nge7 {[%clk 00:01:45]} {[%emt 00:00:45]} 9. O-O
{[%clk 00:01:55]} {[%emt 00:00:20]} Rc8 {[%clk 00:01:46]} {[%emt 00:00:01]} 10.
Ng5 {[%clk 00:01:50]} {[%emt 00:00:07]} Bxd5 {[%clk 00:01:29]} {[%emt
00:00:18]} 11. Bxd5 {[%clk 00:01:32]} {[%emt 00:00:19]} Nxd5 {[%clk 00:01:29]}
{[%emt 00:00:03]} 12. Re1+ {[%clk 00:01:29]} {[%emt 00:00:05]} Nce7 {[%clk
00:01:28]} {[%emt 00:00:03]} 13. Qf3 {[%clk 00:01:25]} {[%emt 00:00:06]} O-O
{[%clk 00:01:27]} {[%emt 00:00:04]} 14. Nxf7 {[%clk 00:01:19]} {[%emt
00:00:07]} Rxf7 {[%clk 00:01:24]} {[%emt 00:00:04]} 15. Qh5 {[%clk 00:01:07]}
{[%emt 00:00:14]} h6 {[%clk 00:01:10]} {[%emt 00:00:16]} 16. Bxh6 {[%clk
00:01:03]} {[%emt 00:00:06]} gxh6 {[%clk 00:01:10]} {[%emt 00:00:02]} 17. Qxh6
{[%clk 00:01:02]} {[%emt 00:00:04]} Nf6 {[%clk 00:00:59]} {[%emt 00:00:14]} 18.
Qg5+ {[%clk 00:00:57]} {[%emt 00:00:06]} Kf8 {[%clk 00:00:48]} {[%emt
00:00:13]} 19. Qh6+ {[%clk 00:00:54]} {[%emt 00:00:05]} Ke8 {[%clk 00:00:45]}
{[%emt 00:00:06]} 20. Qh8+ {[%clk 00:00:51]} {[%emt 00:00:04]} Rf8 {[%clk
00:00:21]} {[%emt 00:00:36]} 21. Qh6 {[%clk 00:00:25]} {[%emt 00:00:33]} Qd4
{[%clk 00:00:17]} {[%emt 00:00:06]} 22. Qe3 {[%clk 00:00:03]} {[%emt 00:00:25]}
Qxb2 {[%clk 00:00:13]} {[%emt 00:00:06]} 0-1

[Event "Dam-SM i Blixtschack"]
[Site "Goteborgs Schackcentrum, Vegatan 20, Gothenburg, Sweden"]
[Date "2024.12.07"]
[Round "1.4"]
[White "Mironova, Olga K"]
[Black "Hansson, Susanne"]
[Result "0-1"]
[TimeControl "3 minutes + 2 seconds per move from move one"]
[WhiteFideId "1779656"]
[BlackFideId "1703820"]
[WhiteElo "1404"]
[BlackElo "1878"]

1. e4 {[%clk 00:03:02]} {[%emt 00:00:02]} e5 {[%clk 00:03:03]} {[%emt
00:00:01]} 2. d4 {[%clk 00:03:00]} {[%emt 00:00:03]} exd4 {[%clk 00:03:04]}
{[%emt 00:00:02]} 3. Qxd4 {[%clk 00:02:59]} {[%emt 00:00:03]} Nc6 {[%clk
00:03:05]} {[%emt 00:00:01]} 4. Qd2 {[%clk 00:02:44]} {[%emt 00:00:17]} Nf6
{[%clk 00:03:04]} {[%emt 00:00:04]} 5. Nc3 {[%clk 00:02:42]} {[%emt 00:00:03]}
Bb4 {[%clk 00:02:52]} {[%emt 00:00:14]} 6. a3 {[%clk 00:02:38]} {[%emt
00:00:06]} Ba5 {[%clk 00:02:53]} {[%emt 00:00:01]} 7. b4 {[%clk 00:02:38]}
{[%emt 00:00:02]} Bb6 {[%clk 00:02:54]} {[%emt 00:00:01]} 8. Nd5 {[%clk
00:02:32]} {[%emt 00:00:08]} Nxe4 {[%clk 00:02:47]} {[%emt 00:00:10]} 9. Qf4
{[%clk 00:02:13]} {[%emt 00:00:21]} O-O {[%clk 00:02:45]} {[%emt 00:00:04]} 10.
Qxe4 {[%clk 00:02:09]} {[%emt 00:00:06]} Re8 {[%clk 00:02:46]} {[%emt
00:00:01]} 11. Nf6+ {[%clk 00:01:21]} {[%emt 00:00:49]} gxf6 {[%clk 00:02:39]}
{[%emt 00:00:08]} 12. Qxe8+ {[%clk 00:01:05]} {[%emt 00:00:18]} Qxe8+ {[%clk
00:02:40]} {[%emt 00:00:01]} 13. Be3 {[%clk 00:01:05]} {[%emt 00:00:02]} Bxe3
{[%clk 00:02:41]} {[%emt 00:00:02]} 14. fxe3 {[%clk 00:01:05]} {[%emt
00:00:02]} Qxe3+ {[%clk 00:02:41]} {[%emt 00:00:01]} 15. Be2 {[%clk 00:01:00]}
{[%emt 00:00:08]} Qc3+ {[%clk 00:02:39]} {[%emt 00:00:04]} 16. Kf2 {[%clk
00:00:50]} {[%emt 00:00:12]} Qxa1 {[%clk 00:02:39]} {[%emt 00:00:02]} 17. Bc4
{[%clk 00:00:35]} {[%emt 00:00:16]} Qd4+ {[%clk 00:02:38]} {[%emt 00:00:04]} 18.
Ke1 {[%clk 00:00:29]} {[%emt 00:00:07]} Qxc4 {[%clk 00:02:38]} {[%emt
00:00:03]} 19. Ne2 {[%clk 00:00:29]} {[%emt 00:00:03]} d5 {[%clk 00:02:34]}
{[%emt 00:00:06]} 20. g4 {[%clk 00:00:23]} {[%emt 00:00:08]} Nd4 {[%clk
00:02:29]} {[%emt 00:00:07]} 21. Nxd4 {[%clk 00:00:12]} {[%emt 00:00:13]} Qxd4
{[%clk 00:02:28]} {[%emt 00:00:02]} 22. Rg1 {[%clk 00:00:11]} {[%emt 00:00:02]}
Qxg1+ {[%clk 00:02:28]} {[%emt 00:00:03]} 0-1